Cogmind - Beta 17 @@@ ROGUE MODE // 2026.06.25 @ 17:52:27 Player: Cynthion21x Result: Destroyed by G-47 Trooper with Particle Gun Performance ------------- Evolutions (0) 0 Regions Visited (2) 400 Robots Destroyed (24) 120 Value Destroyed (576) 576 Prototype IDs (0) 0 Alien Tech Used (0) 0 Bonus (0) 0 TOTAL SCORE: 1096 Bonus ------- None Cogmind --------- Core Integrity 0/250 Matter 255/300 Energy 81/100 System Corruption 0% Temperature Warm (111) Movement Walking (120) Location -10/Mines Parts ------- > --- POWER (1) -------- (None) > --- PROPULSION (2) --- Aluminum Leg Aluminum Leg > --- UTILITY (2) ------ Small Storage Unit Signal Interpreter > --- WEAPON (2) ------- Small Laser Small Laser > --- INVENTORY (8) ---- Light Ion Engine Aluminum Leg Aluminum Leg Improved Heat Sink Particle Gun Light Assault Rifle Light Assault Rifle Peak State ------------ > --- POWER ------------ Light Nuclear Core > --- PROPULSION ------- Aluminum Leg Aluminum Leg > --- UTILITY ---------- Small Storage Unit Signal Interpreter > --- WEAPON ----------- Particle Gun Light Assault Rifle > --- INVENTORY -------- Light Ion Engine Light Ion Engine Aluminum Leg Improved Heat Sink Small Laser Small Laser Assault Rifle Datajack [Rating: 11] Favorites ----------- Power Light Ion Engine Engine Light Ion Engine Power Core Light Nuclear Core Propulsion Aluminum Leg Leg Aluminum Leg Utility Small Storage Unit Storage Small Storage Unit Processor Signal Interpreter Weapon Small Laser Energy Gun Small Laser Ballistic Gun Assault Rifle Special Melee Weapon Datajack Build | -11 -10 -10 ------- Run | Yrd Mat Min Slots Evolved . | . . . Power . | . . . Propulsion . | . . . Utility . | . . . Weapon . | . . . Parts Attached 26 | 6 19 1 Power 5 | 1 3 1 Engine 4 | 1 2 1 Core 1 | . 1 . Reactor . | . . . Propulsion 10 | 2 8 . Treads . | . . . Leg 10 | 2 8 . Wheel . | . . . Hover . | . . . Flight . | . . . Utility 2 | 1 1 . Device . | . . . Storage 1 | 1 . . Processor 1 | . 1 . Hackware . | . . . Protection . | . . . Artifact . | . . . Weapon 9 | 2 7 . Energy Gun 6 | 1 5 . Energy Cannon . | . . . Ballistic Gun 2 | 1 1 . Ballistic Cannon . | . . . Launcher . | . . . Special Weapon . | . . . Impact Weapon . | . . . Slashing Weapon . | . . . Piercing Weapon . | . . . Special Melee Weapon 1 | . 1 . Unidentified Prototypes . | . . . Parts Lost 5 | . 4 1 Power 2 | . 1 1 Propulsion 2 | . 2 . Utility . | . . . Weapon 1 | . 1 . Highest Loss Streak 2 | . 2 1 To Critical Strikes . | . . . Average Backups 6 | 2 6 6 Power 1 | . 1 . Propulsion 2 | 1 2 2 Utility . | . . 1 Weapon 1 | . 1 3 Tool/Special . | . . . Unused Backups 10 | 1 3 6 Power 1 | . . 1 Propulsion 5 | . 3 2 Utility 1 | . . 1 Weapon 3 | 1 . 2 Tool/Special . | . . . Average Slot Usage (%) 95 | . 95 98 Engine 8 | . 8 12 Core 5 | . 5 . Leg 27 | . 27 28 Storage 14 | . 14 14 Processor 11 | . 11 14 Energy Gun 14 | . 13 28 Ballistic Gun 12 | . 13 . Peak Build Rating 11 | 6 11 8 Average Rating 7 | 4 8 7 On Entrance 4 | . 6 8 Avg Prop Armor Cover (%) . | . . . Naked Turns . | . . . Heaviest Build 14 | 11 14 10 Greatest Support 20 | 20 20 20 Greatest Overweight (x) 3 | . 3 . Average Overweight (x) . | . . . Largest Inventory Capacity 8 | 8 8 8 Average Capacity 7 | 6 8 8 Most Carried 8 | 5 8 7 Average Carried 6 | 2 6 6 Final Capacity 8 | 8 8 8 Final Carried 7 | 4 7 7 Class Distribution -------------------- 53% | Mutant 46% | Scavenger-Mutant Dominant Class ---------------- Mutant | -10/Materials Scavenger-Mutant | -10/Mines Resources | -11 -10 -10 ----------- Run | Yrd Mat Min Matter Collected 570 | 150 420 . Remotely . | . . . Salvage Created 718 | . 664 54 Parts 51 | . 42 9 Haulers Intercepted . | . . . Recyclers Shooed . | . . . Parts Field Recycled . | . . . Retrieved Matter . | . . . Parts Self-Destructed . | . . . Prevented . | . . . Parts Restored . | . . . Kills | -11 -10 -10 ------- Run | Yrd Mat Min Combat Hostiles Destroyed 21 | . 18 3 Guns 21 | . 18 3 Classes Destroyed 4 | . 4 . Worker 2 | . 2 . Watcher 1 | . 1 . Swarmer 8 | . 5 3 Grunt 13 | . 13 . Best Kill Streak 4 | . 4 3 Combat Bots Only 3 | . 3 3 Max Kills in Single Turn 2 | . 2 1 Gunslinging 1 | . 1 . Exploded . | . . . Melee . | . . . Uniques/NPCs Destroyed . | . . . Combat | -11 -10 -10 -------- Run | Yrd Mat Min Hostile Shots Fired 153 | . 113 40 Missed 30 | . 19 11 Hits 123 | . 94 29 Projectile 123 | . 94 29 Damage Taken 1360 | . 1046 314 Core 255 | . 168 87 Absorbed by Shields . | . . . Regen/Repaired (Parts) 19 | . 19 . Core Remaining (%) 100 | 100 . . Volleys Fired 76 | . 64 12 Largest 2 | . 2 2 Hottest 85 | . 85 80 Shots Fired 151 | . 127 24 Gun 151 | . 127 24 Cannon . | . . . Launcher . | . . . Special . | . . . Kinetic 64 | . 64 . Thermal 87 | . 63 24 Explosive . | . . . Electromagnetic . | . . . Robot Hit Streak 12 | . 12 4 Robot Miss Streak 4 | . 4 3 Penetration Max . | . . . Secondary Targets 5 | . 3 2 Max Gunslinging Chain 1 | . 1 1 Shots Hit Robots 93 | . 81 12 Core Hits 37 | . 34 3 Critical Kills . | . . . Critical Parts Destroyed . | . . . Critical Strikes 3 | . 3 . Burn 3 | . 3 . Melee Attacks 4 | . 4 . Impact . | . . . Slashing . | . . . Piercing . | . . . Sneak Attacks 3 | . 3 . Combat Hostiles . | . . . Follow-up Attacks . | . . . Damage Inflicted 1038 | . 905 133 Guns 1038 | . 905 133 Cannons . | . . . Explosions . | . . . Melee . | . . . Ramming . | . . . Kinetic 464 | . 464 . Thermal 574 | . 441 133 Explosive . | . . . Electromagnetic . | . . . Impact . | . . . Slashing . | . . . Piercing . | . . . Highest Corruption . | . . . Average Corruption . | . . . Corruption Purged . | . . . Corruption Blocked . | . . . Overload Shots . | . . . Overflow Damage . | . . . Projectiles . | . . . Explosions . | . . . Melee . | . . . Knockbacks . | . . . Impact . | . . . Kinetic . | . . . Secondary . | . . . Self-Inflicted Damage . | . . . Shots . | . . . Rammed . | . . . Targets Rammed . | . . . Kicked . | . . . Crushed . | . . . Highest Temperature 428 | . 428 108 Average Temperature 109 | . 120 59 Received Heat Transfer 561 | . 447 114 Effects 2 | . 2 . Energy Bleed 1 | . 1 . Short Circuit 1 | . 1 . Siege Activations . | . . . Martial Activations . | . . . Shielding Activations . | . . . Robots Disrupted . | . . . Combat Hostiles . | . . . Robots Corrupted . | . . . Combat Hostiles . | . . . Parts Fried . | . . . Impact Corruptions . | . . . Robots Melted . | . . . Combat Hostiles . | . . . Parts Melted 2 | . 2 . Heat Transferred 1528 | . 1228 300 Parts Sabotaged . | . . . Parts Stolen . | . . . Parts Stripped . | . . . Power Chain Reactions . | . . . Alert | -11 -10 -10 ------- Run | Yrd Mat Min Maximum Alert Level . | . . . Low Security (%) 100 | 100 100 100 Level 1 . | . . . Level 2 . | . . . Level 3 . | . . . Level 4 . | . . . Level 5 . | . . . High Security . | . . . Max Security . | . . . Peak Influence 131 | . 131 117 Initial 47 | . . 47 Average 46 | . 46 88 Influence Increases 625 | . 540 85 Destroy 0b10 Robot/C 420 | . 360 60 Destroy 0b10 Robot/NC 15 | . 15 . Destroy Leader 92 | . 82 10 Successful Hack 7 | . 7 . Disable Machine 15 | . 15 . Destroy Structure 1 | . 1 . Lose Combat Pursuer 75 | . 60 15 Influence Decreases 543 | . 417 126 Entered New Map 76 | . . 76 Time Decay 417 | . 377 40 Lost Part 50 | . 40 10 Squads Dispatched 6 | . 6 . Investigation 4 | . 4 . Extermination . | . . . Reinforcement 2 | . 2 . Assault . | . . . Garrison . | . . . Intercept . | . . . Searches Triggered . | . . . Construction Impeded . | . . . Haulers Reinforced . | . . . Active Scanning Responses . | . . . Cargo Convoy Interrupts . | . . . Stealth | -11 -10 -10 --------- Run | Yrd Mat Min Distress Signals 2 | . 2 . Communications Jammed . | . . . Distress Signals . | . . . Times Spotted 41 | . 33 8 Peak Tracking Total 6 | . 6 4 Tactical Retreats 3 | . 2 1 Traps | -11 -10 -10 ------- Run | Yrd Mat Min Traps Triggered 1 | . 1 . Indirectly . | . . . Trap Hack Attempts . | . . . Triggered . | . . . Disarmed . | . . . Reprogrammed . | . . . Reused . | . . . Traps Extracted . | . . . Installed . | . . . Triggered . | . . . Machines | -11 -10 -10 ---------- Run | Yrd Mat Min Machines Disabled 1 | . 1 . Max in Single Turn 1 | . 1 . Machines Repaired . | . . . Machines Dismantled . | . . . Machines Sabotaged . | . . . Overloaded Fab Kills . | . . . Hacking | -11 -10 -10 --------- Run | Yrd Mat Min Machines Accessed 7 | . 7 . Terminals 5 | . 5 . Fabricators . | . . . Repair Stations 1 | . 1 . Recycling Units 1 | . 1 . Scanalyzers . | . . . Garrison Access . | . . . Total Hacks 29 | . 29 . Successful 13 | . 13 . Failed 16 | . 16 . Catastrophic 3 | . 3 . Database Lockouts . | . . . Manual . | . . . Terminals 20 | . 20 . Fabricators . | . . . Repair Stations 4 | . 4 . Recycling Units 5 | . 5 . Scanalyzers . | . . . Garrison Access . | . . . Terminal Hacks 6 | . 6 . Record 1 | . 1 . Emergency Access Points 1 | . 1 . Alert Level 1 | . 1 . Locate Traps 1 | . 1 . Maintenance Status 1 | . 1 . Assault Status 1 | . 1 . Fabricator Hacks . | . . . Repair Station Hacks 4 | . 4 . Scan Component 2 | . 2 . Repair 2 | . 2 . Recycling Unit Hacks 3 | . 3 . Recycle Component 1 | . 1 . Process 1 | . 1 . Retrieve Components 1 | . 1 . Scanalyzer . | . . . Garrison Access Hacks . | . . . Unauthorized Hacks . | . . . Terminals . | . . . Fabricators . | . . . Repair Stations . | . . . Recycling Units . | . . . Scanalyzers . | . . . Garrison Access . | . . . Data Cores Recovered . | . . . Used . | . . . Hacking Detections 6 | . 6 . Full Trace Events 4 | . 4 . Feedback Events . | . . . Feedback Blocked . | . . . Robot Schematics Acquired . | . . . Robots Built . | . . . Authchips . | . . . Time . | . . . Total Robot Build Rating . | . . . Part Schematics Acquired . | . . . Parts Built . | . . . Authchips . | . . . Time . | . . . Total Part Build Rating . | . . . Part Studies Acquired . | . . . Parts Repaired 2 | . 2 . Time 58 | . 58 . Parts Recycled 1 | . 1 . Recycled Matter . | . . . Retrieved Matter . | . . . Retrieved Components 9 | . 9 . Parts Scanalyzed . | . . . Part Schematics Acquired . | . . . Parts Damaged . | . . . Bothacking | -11 -10 -10 ------------ Run | Yrd Mat Min Used RIF Installer . | . . . Robots Hacked 3 | . 3 . Non-combat 3 | . 3 . Combat . | . . . Robot Hacks Applied 3 | . 3 . parse_system 2 | . 2 . no_distress 1 | . 1 . Relay Couplers Released . | . . . Fabnet Peak Effective % . | . . . Robots Rewired . | . . . Allies Hacked . | . . . Hacks Repelled . | . . . Allies | -11 -10 -10 -------- Run | Yrd Mat Min Total Allies . | . . . Largest Group . | . . . Highest-Rated Group . | . . . Highest-Rated Ally . | . . . Total Orders . | . . . Ally Attacks . | . . . Total Damage . | . . . Kills . | . . . Allies Corrupted . | . . . Allies Melted . | . . . Intel | -11 -10 -10 ------- Run | Yrd Mat Min Active Infowar (turns) . | . . . Robot Analysis Total . | . . . Derelict Logs Recovered . | . . . Drone Launches . | . . . Drone Recoveries . | . . . Exploration | -11 -10 -10 ------------- Run | Yrd Mat Min Turns Passed 1474 | 81 1299 94 Spaces Moved 867 | 63 760 44 Core 19 | 17 2 . Treads . | . . . Legs 848 | 46 758 44 Wheels . | . . . Hover . | . . . Flight . | . . . Fastest Speed 50 | 50 120 120 Average Speed 119 | 101 121 120 Slowest Speed 200 | 120 200 120 Overloaded Moves . | . . . Propulsion Burnouts . | . . . Robots Hopped . | . . . Potential Cave-ins . | . . . Cave-ins Triggered . | . . . Exploration Rate (%) 31 | 3 82 8 Regions Visited 2 Branch Regions 1 Pre-discovered Areas . | . . . Known Exits Taken 1 | . 1 . Unknown Exits Taken 1 | 1 . . Scrap Searched . | . . . Spaces Dug . | . . . Terrain Destroyed . | . . . Melee . | . . . Projectile . | . . . AOE . | . . . Terrain Rammed . | . . . Walls Destroyed . | . . . Machines Disabled . | . . . Actions | -11 -10 -10 --------- Run | Yrd Mat Min Total 1167 | 81 1021 65 Wait 129 | 1 128 . Move 865 | 62 759 44 Hop . | . . . Pick Up 41 | 11 26 4 Fast Attach . | . . . Attach 19 | 6 13 . Detach 2 | . 2 . Swap 11 | . 10 1 Drop 20 | 1 15 4 Fire 76 | . 64 12 Melee 4 | . 4 . Ram . | . . . Kick . | . . . Crush . | . . . Escape Stasis . | . . . Rewire . | . . . Trap . | . . . Miscellaneous . | . . . Route ------- -11/Scrapyard -10/Materials (discovered 4 exits: [*Mat x3] / *Min) -10/Mines History --------- Turn | Location | Event 9 | -11/Scrapyard | Discovered new exit (range 15) 82 | -11/Scrapyard | Entered Materials 308 | -10/Materials | Build established: Mutant 340 | -10/Materials | Discovered new exit (range 14) 593 | -10/Materials | Discovered new exit (range 13) 706 | -10/Materials | Discovered new exit (range 16) 752 | -10/Materials | Core integrity fell below 50% 831 | -10/Materials | Repaired Assault Rifle 863 | -10/Materials | Repaired Particle Gun 1115 | -10/Materials | Build established: Scavenger-Mutant 1363 | -10/Materials | Discovered new exit (range 16) 1380 | -10/Materials | Identified exit to Mines 1381 | -10/Materials | Entered Mines 1391 | -10/Mines | Core integrity fell below 20% 1475 | -10/Mines | Destroyed by G-47 Trooper with Particle Gun Last Messages --------------- Acquired Sml. Laser. K-01 Serf collects debris. EXIT=FOUND EXIT=IDENTIFIED: MINES LOCATION=MINES GOAL=ESCAPE S-10 Pest destroyed. Switching to secondary target: S-10 Pest. S-10 Pest destroyed. Switching to secondary target: S-10 Pest. S-10 Pest destroyed. Dropped Lgt. Ion Engine. Dropped Lgt. Assault Rifle. Dropped Sml. Laser. Acquired Lgt. Assault Rifle. Acquired Lgt. Ion Engine. Dropped Lgt. Ion Engine. Acquired Lgt. Ion Engine. T-07 Excavator is excavating. Lgt. Ion Engine destroyed. Map ----- +----------------------------------------------------+ | | | | | | | | | | | | | | | | | | | | | ?????????????????????????????????????????? | | ?????????????????????????????????????????? | | ?????????????????????????????????????????? | | ?????????????????????????????????????????? | | ?????????????????????????????????????????? | | ?????????????????????????????????????????? | | ?????????????????????????????????????????? | | ?????????????????????????????????????????? | | ?????????????????????????????????????????? | | ?????????????????????????????????????????? | | ?????????????????????????????????????????? | | ?????????????????????????????????????????? | | ??????????????????????????????? ???????? | | ?????????????????????????????"" ???????? | | ??????????????????????##### """ #??????? | | ??????????????????????# g@ g #??????? | | ??????????????????????#g### g #??????? | | ??????????????????????# #????######??????? | | ??????????????????????# #????????????????? | | ??????????????????????# #????????????????? | | ??????????????????????# #????????????????? | | ??????????????????????# #????####????????? | | ??????????????????????# #????# ##???????? | | ??????????????????????# #????# #???????? | | ??????????????????????# #????# #????????? | | ??????????????????????# #????# ##????????? | | ??????????????????????# #????# #####?????? | | ??????????????????????# #????# ##[%#####?? | | ?????????????????????## ###### # =*=%= ##? | | ?????????????????????# =% *[#? | | ?????????????????????# ########## [ #? | | ?????????????????????# #????????## ##? | | ?????????????????????# #?????????## #?? | | ?????????????????????# #??????????## ##?? | | ?????????????????????# #???????????####??? | | ?????????????????????# #?????????????????? | | ????????????????????? ?????????????????? | | ?????????????????????###?????????????????? | | ?????????????????????????????????????????? | | ?????????????????????????????????????????? | +----------------------------------------------------+ Best States ------------- Heat Dissipation 25 Energy Generation 14 Energy Capacity 160 Matter Stores 300 Matter Capacity 300 Sight Range 16 Terrain Scan Density 10 Evasion (%) 55 Item Schematics ----------------- None Robot Schematics ------------------ None Fabricated ------------ Nothing Repaired ---------- Particle Gun | 74% | -10/Materials Studied --------- None Alien Tech Used ----------------- None Achievements -------------- Junior Dev Challenges ------------ None Game ------ Seed AntimatterSpectralSuite Manual? 0 Play Time 00:22:19 Cumulative 1.9 hours Start 2026.06.25 @ 17:20:13 End 2026.06.25 @ 17:52:27 Sessions 1 Manual Loads 0 Difficulty Rogue Special Mode None Game No. 8 Rogue 8 Adventurer 0 Explorer 0 Win Type - Total 0 Types 0/0/0/0/0/0/0/0/0/0 Lore% 0 Gallery% 4 Achievement% 4 Wizard Run 0 Options --------- Layout 1 ASCII 0 Keyboard 0 Movement Numpad Keybinds 0 Fullscreen 1 Font 24/X11 Map View 50x35 Zoom Use 0% Tactical HUD 0 Map Filters NONE Filters NONE Steam 1 RUN: d5d95504-6a41-40d0-aa6f-d8d82c2b836c